Cogmind - Beta 16.1 @@@ ROGUE MODE // 2026.04.17 @ 10:32:49 Player: szymekc Result: Destroyed by 99-TNT with 99-TNT's Nukerbomber Performance ------------- Evolutions (1) 500 Regions Visited (6) 1200 Robots Destroyed (93) 465 Value Destroyed (1743) 1743 Prototype IDs (33) 660 Alien Tech Used (0) 0 Bonus (340) 340 TOTAL SCORE: 4908 Bonus ------- Follower Combat Kills 40 Aligned with FarCom 300 Cogmind --------- Core Integrity 0/400 Matter 278/300 Energy 308/310 System Corruption 0% Temperature Cool (2) Movement Walking (45) Location -8/Mines Parts ------- > --- POWER (1) -------- Heavy Deuterium Engine > --- PROPULSION (3) --- Potential Leg Potential Leg > --- UTILITY (3) ------ High-capacity Storage Unit > --- WEAPON (2) ------- (None) > --- INVENTORY (20) --- Nuclear Core Advanced Myomer Leg High-capacity Matter Pod (200) Experimental Sensor Array Experimental Targeting Computer Advanced Weapon Cycler Advanced Transmission Jammer Hardlight Generator Advanced Recalibrator Chronowheel 8R-AWN's Boregun AWS/Autocannon Shock Bomb Launcher Flail Deploy-a-Sentry Peak State ------------ > --- POWER ------------ Heavy Deuterium Engine > --- PROPULSION ------- Light Treads Light Treads Advanced Myomer Leg > --- UTILITY ---------- High-capacity Storage Unit Advanced Weapon Cycler Medium Armor Plating > --- WEAPON ----------- Improved Assault Rifle 8R-AWN's Boregun > --- INVENTORY -------- Nuclear Core Light Treads Light Treads Light Treads High-capacity Matter Pod High-capacity Matter Pod Experimental Targeting Computer Advanced Transmission Jammer Medium Armor Plating Hardlight Generator Hardlight Generator Trap Extractor Advanced Recalibrator Chronowheel High-powered Shotgun High-powered Shotgun Shock Bomb Launcher Shock Bomb Launcher Flail Deploy-a-Sentry [Rating: 46] Favorites ----------- Power Cooled Ion Engine Engine Cooled Ion Engine Power Core Nuclear Core Propulsion Light Treads Treads Light Treads Leg Carbon-fiber Leg Wheel Wheel Utility High-capacity Storage Unit Device Shield Generator Storage High-capacity Storage Unit Protection Medium Armor Plating Weapon Improved Assault Rifle Energy Gun Improved EM Shotgun Ballistic Gun Improved Assault Rifle Launcher Shock Bomb Launcher Impact Weapon Flail Build | -11 -10 -10 -9 -9 -9 -8 ------- Run | Yrd Mat Min Mat Min Exi Min Slots Evolved 2 | . . . 2 . . . Power . | . . . . . . . Propulsion 1 | . . . 1 . . . Utility 1 | . . . 1 . . . Weapon . | . . . . . . . Parts Attached 64 | 6 10 8 22 4 10 4 Power 8 | 1 4 . 2 . 1 . Engine 7 | 1 4 . 1 . 1 . Core 1 | . . . 1 . . . Reactor . | . . . . . . . Propulsion 19 | 2 . 4 4 2 5 2 Treads 12 | 2 . . 4 2 4 . Leg 5 | . . 2 . . 1 2 Wheel 2 | . . 2 . . . . Hover . | . . . . . . . Flight . | . . . . . . . Utility 16 | 1 4 1 6 2 2 . Device 9 | 1 2 . 3 1 2 . Storage 3 | . 1 1 1 . . . Processor . | . . . . . . . Hackware . | . . . . . . . Protection 4 | . 1 . 2 1 . . Artifact . | . . . . . . . Weapon 21 | 2 2 3 10 . 2 2 Energy Gun 5 | . 1 1 3 . . . Energy Cannon . | . . . . . . . Ballistic Gun 13 | 2 1 2 5 . 1 2 Ballistic Cannon . | . . . . . . . Launcher 2 | . . . 2 . . . Special Weapon . | . . . . . . . Impact Weapon 1 | . . . . . 1 . Slashing Weapon . | . . . . . . . Piercing Weapon . | . . . . . . . Special Melee Weapon . | . . . . . . . Unidentified Prototypes 7 | . 1 . 3 . 3 . Parts Lost 17 | . 3 . 1 1 4 8 Power 1 | . 1 . . . . . Propulsion 5 | . . . . . 2 3 Utility 7 | . 1 . 1 1 2 2 Weapon 4 | . 1 . . . . 3 Highest Loss Streak 8 | . 2 . 1 1 3 8 To Critical Strikes 3 | . . . . . 3 . Average Backups 15 | 1 5 9 17 19 18 16 Power 1 | . . 1 1 1 1 1 Propulsion 2 | . . . 2 4 3 3 Utility 6 | . 3 6 7 7 7 7 Weapon 4 | 1 1 1 5 7 5 4 Tool/Special . | . . . . . . . Unused Backups 17 | . 1 2 1 . 6 7 Power 5 | . 1 1 . . 3 . Propulsion . | . . . . . . . Utility 8 | . . 1 . . 2 5 Weapon 3 | . . . 1 . 1 1 Tool/Special 1 | . . . . . . 1 Average Slot Usage (%) 99 | . 92 100 99 100 100 95 Engine 11 | . 14 14 11 11 11 11 Treads 28 | . 28 10 28 33 33 30 Leg 2 | . . 13 3 . . 2 Device 14 | . 13 14 20 16 11 9 Storage 10 | . 5 14 11 11 11 11 Protection 5 | . 1 . 1 5 11 9 Energy Gun 5 | . 7 14 10 . . . Ballistic Gun 17 | . 20 14 10 22 21 19 Peak Build Rating 46 | 6 13 18 23 22 46 41 Average Rating 22 | 4 8 15 21 21 29 34 On Entrance 17 | . 6 11 18 21 22 44 Avg Prop Armor Cover (%) 7 | . . 5 7 . . 14 Naked Turns . | . . . . . . . Heaviest Build 72 | 6 19 24 65 63 72 69 Greatest Support 60 | 40 40 40 60 60 60 60 Greatest Overweight (x) 2 | . . 2 2 1 1 1 Average Overweight (x) . | . . . . . 1 . Largest Inventory Capacity 20 | 5 8 10 20 20 20 20 Average Capacity 16 | 5 6 9 19 20 20 20 Most Carried 20 | 4 8 10 20 20 20 20 Average Carried 16 | 2 5 9 17 19 19 19 Final Capacity 20 | 5 8 10 20 20 20 20 Final Carried 20 | 4 8 10 20 20 20 17 Class Distribution -------------------- 52% | Mutant 47% | Scavenger-Mutant Dominant Class ---------------- Mutant | -10/Materials Mutant | -10/Mines Scavenger-Mutant | -9/Materials Mutant | -9/Mines Mutant | -9/Exiles Scavenger-Mutant | -8/Mines Resources | -11 -10 -10 -9 -9 -9 -8 ----------- Run | Yrd Mat Min Mat Min Exi Min Matter Collected 2275 | 268 170 108 578 107 971 73 Remotely . | . . . . . . . Salvage Created 3077 | 115 482 249 1318 312 477 124 Parts 236 | 9 25 26 99 14 51 12 Haulers Intercepted 7 | . 2 . 5 . . . Recyclers Shooed 6 | . 5 . 1 . . . Parts Field Recycled . | . . . . . . . Retrieved Matter . | . . . . . . . Parts Self-Destructed . | . . . . . . . Prevented . | . . . . . . . Parts Restored . | . . . . . . . Kills | -11 -10 -10 -9 -9 -9 -8 ------- Run | Yrd Mat Min Mat Min Exi Min Combat Hostiles Destroyed 64 | . 8 12 29 6 4 5 Guns 48 | . 8 12 16 6 1 5 AOE 15 | . . . 12 . 3 . Classes Destroyed 13 | 2 2 2 3 1 3 . Worker 3 | . . . 2 1 . . Builder 5 | . . 1 4 . . . Tunneler 3 | 2 . 1 . . . . Hauler 7 | . 2 . 5 . . . Recycler 3 | 1 1 . 1 . . . Operator 1 | . . . 1 . . . Turret 1 | . . . . . 1 . Swarmer 27 | . . 10 14 . . 3 Grunt 25 | . 8 2 10 3 . 2 Brawler 1 | . . . . 1 . . Sentry 7 | . . . 5 2 . . Zionite 7 | . . . . . 7 . Assembled 3 | . . . . . 3 . Best Kill Streak 7 | 3 2 3 7 3 7 3 Combat Bots Only 6 | . 2 3 6 3 3 3 Max Kills in Single Turn 3 | 1 1 1 3 1 1 1 Gunslinging . | . . . . . . . Exploded 2 | . . . 2 . 1 . Melee . | . . . . . . . Uniques/NPCs Destroyed 4 | . . . . . 4 . 8R-AWN (-9/Exiles) EX-BIN (-9/Exiles) EX-HEX (-9/Exiles) EX-DEC (-9/Exiles) Combat | -11 -10 -10 -9 -9 -9 -8 -------- Run | Yrd Mat Min Mat Min Exi Min Hostile Shots Fired 380 | . 58 38 96 10 129 49 Missed 85 | . 9 10 24 5 28 9 Hits 295 | . 49 28 72 5 101 40 Projectile 295 | . 49 28 72 5 101 40 AOE 18 | . . . . . . 18 Critical Strikes 43 | . . . 4 . 39 . Damage Taken 3836 | . 606 191 649 45 1059 1286 Core 536 | . 107 24 37 . 133 235 Absorbed by Shields 691 | . 27 78 151 17 370 48 Ignored by Resistances 321 | . . . 11 . 310 . Regen/Repaired (Parts) 143 | . . . 143 . . . Core Remaining (%) 73 | 100 . 47 . . . . Volleys Fired 277 | 8 54 28 65 12 98 12 Largest 2 | 2 2 2 2 2 2 2 Hottest 90 | 40 60 83 90 46 53 50 Shots Fired 531 | 16 108 56 122 24 181 24 Gun 514 | 16 108 56 112 24 174 24 Cannon . | . . . . . . . Launcher 17 | . . . 10 . 7 . Special . | . . . . . . . Kinetic 402 | 16 82 28 54 24 174 24 Thermal 54 | . 26 28 . . . . Explosive . | . . . . . . . Electromagnetic 75 | . . . 68 . 7 . Robot Hit Streak 41 | 3 8 7 14 9 41 6 Robot Miss Streak 7 | 2 4 7 5 1 6 4 Penetration Max 1 | . . . . . 1 . Secondary Targets 7 | . . 4 1 2 . . Max Gunslinging Chain 1 | . . 1 1 1 . . Shots Hit Robots 359 | 7 67 33 89 18 131 14 Core Hits 172 | 6 30 19 59 11 36 11 Critical Kills 3 | . . . . . 3 . Critical Parts Destroyed 7 | . 1 . . . 6 . Critical Strikes 10 | . 1 . . . 9 . Destroy 9 | . 1 . . . 8 . Smash 1 | . . . . . 1 . Melee Attacks 1 | . . . . . 1 . Impact 1 | . . . . . 1 . Slashing . | . . . . . . . Piercing . | . . . . . . . Sneak Attacks . | . . . . . . . Combat Hostiles . | . . . . . . . Follow-up Attacks . | . . . . . . . Damage Inflicted 6032 | 65 570 485 2119 292 2269 232 Guns 5125 | 63 559 458 1531 266 2016 232 Cannons . | . . . . . . . Explosions 800 | . . . 574 . 226 . Melee 27 | . . . . . 27 . Ramming 80 | 2 11 27 14 26 . . Kinetic 3924 | 63 413 114 820 266 2016 232 Thermal 793 | . 146 344 303 . . . Explosive . | . . . . . . . Electromagnetic 1208 | . . . 982 . 226 . Impact 27 | . . . . . 27 . Slashing . | . . . . . . . Piercing . | . . . . . . . Highest Corruption . | . . . . . . . Average Corruption . | . . . . . . . Corruption Purged . | . . . . . . . Corruption Blocked . | . . . . . . . Overload Shots . | . . . . . . . Overflow Damage 32 | . . . 32 . . . Projectiles . | . . . . . . . Explosions 32 | . . . 32 . . . Melee . | . . . . . . . Knockbacks 1 | . . 1 . . . . Impact 1 | . . 1 . . . . Kinetic . | . . . . . . . Secondary . | . . . . . . . Self-Inflicted Damage 59 | . . . 49 . 10 . Shots 2 | . . . 1 . 1 . Rammed 10 | 2 4 . 1 3 . . Targets Rammed 19 | 2 4 5 5 3 . . Kicked 9 | . . 5 4 . . . Crushed . | . . . . . . . Highest Temperature 285 | . 285 160 120 . 36 36 Average Temperature 33 | . 27 57 35 . 17 12 Received Heat Transfer 662 | . 334 36 202 18 . 72 Siege Activations . | . . . . . . . Martial Activations . | . . . . . . . Shielding Activations . | . . . . . . . Robots Disrupted . | . . . . . . . Combat Hostiles . | . . . . . . . Robots Corrupted 1 | . . . 1 . . . Combat Hostiles 1 | . . . 1 . . . Parts Fried 5 | . . . 5 . . . Impact Corruptions . | . . . . . . . Robots Melted . | . . . . . . . Combat Hostiles . | . . . . . . . Parts Melted 1 | . . . 1 . . . Heat Transferred 1490 | . 350 740 400 . . . Parts Sabotaged . | . . . . . . . Parts Stolen . | . . . . . . . Parts Stripped . | . . . . . . . Power Chain Reactions 4 | . . . 4 . . . Alert | -11 -10 -10 -9 -9 -9 -8 ------- Run | Yrd Mat Min Mat Min Exi Min Maximum Alert Level 1 | . . 1 1 . . . Low Security (%) 76 | 100 100 99 40 100 . 100 Level 1 23 | . . . 59 . . . Level 2 . | . . . . . . . Level 3 . | . . . . . . . Level 4 . | . . . . . . . Level 5 . | . . . . . . . High Security . | . . . . . . . Max Security . | . . . . . . . Peak Influence 373 | 10 100 200 373 144 . 90 Initial 140 | . . 8 49 140 . . Average 112 | 1 40 95 200 41 . 55 Influence Increases 1946 | 15 321 400 930 160 . 120 Destroy 0b10 Robot/C 1240 | . 160 260 600 120 . 100 Destroy 0b10 Robot/NC 110 | 15 15 10 65 5 . . Destroy Leader 274 | . 34 50 160 10 . 20 Allied During Kill 24 | . . 20 4 . . . Successful Hack 56 | . 7 . 40 9 . . Select Force Hacks 60 | . 60 . . . . . Disable Machine 30 | . . . 30 . . . Destroy Structure 17 | . . . 16 1 . . Partial Spotted 15 | . . . . 15 . . Lose Combat Pursuer 120 | . 45 60 15 . . . Influence Decreases 1946 | 15 299 294 697 521 . 120 Entered New Map 314 | . . 14 79 221 . . Time Decay 1442 | 15 269 260 568 290 . 40 Lost Part 130 | . 30 . 10 10 . 80 Lost Ally 60 | . . 20 40 . . . Squads Dispatched 9 | . 3 2 4 . . . Investigation 4 | . 2 1 1 . . . Extermination . | . . . . . . . Reinforcement 4 | . 1 . 3 . . . Assault 1 | . . 1 . . . . Garrison . | . . . . . . . Intercept . | . . . . . . . Searches Triggered . | . . . . . . . Construction Impeded 2 | . . . 2 . . . Haulers Reinforced . | . . . . . . . Active Scanning Responses . | . . . . . . . Cargo Convoy Interrupts . | . . . . . . . Stealth | -11 -10 -10 -9 -9 -9 -8 --------- Run | Yrd Mat Min Mat Min Exi Min Distress Signals 4 | . 3 . 1 . . . Communications Jammed . | . . . . . . . Distress Signals . | . . . . . . . Times Spotted 105 | . 16 15 37 5 23 9 Peak Tracking Total 10 | . 4 3 5 2 10 4 Tactical Retreats 14 | . 2 3 1 . 8 . Traps | -11 -10 -10 -9 -9 -9 -8 ------- Run | Yrd Mat Min Mat Min Exi Min Traps Triggered 1 | . . . 1 . . . Indirectly . | . . . . . . . Trap Hack Attempts . | . . . . . . . Triggered . | . . . . . . . Disarmed . | . . . . . . . Reprogrammed . | . . . . . . . Reused . | . . . . . . . Traps Extracted . | . . . . . . . Installed . | . . . . . . . Triggered . | . . . . . . . Machines | -11 -10 -10 -9 -9 -9 -8 ---------- Run | Yrd Mat Min Mat Min Exi Min Machines Disabled 11 | . . . 2 . 9 . Max in Single Turn 1 | . . . 1 . 1 . Machines Repaired . | . . . . . . . Machines Dismantled . | . . . . . . . Machines Sabotaged . | . . . . . . . Overloaded Fab Kills . | . . . . . . . Hacking | -11 -10 -10 -9 -9 -9 -8 --------- Run | Yrd Mat Min Mat Min Exi Min Machines Accessed 22 | . 4 1 14 2 1 . Terminals 14 | . 2 . 10 2 . . Fabricators . | . . . . . . . Repair Stations 1 | . . . 1 . . . Recycling Units 4 | . 2 . 2 . . . Scanalyzers 1 | . . . 1 . . . Garrison Access . | . . . . . . . Total Hacks 62 | . 12 1 43 5 1 . Successful 39 | . 8 1 26 3 1 . Failed 23 | . 4 . 17 2 . . Catastrophic 2 | . . . 2 . . . Database Lockouts . | . . . . . . . Manual 33 | . 7 . 22 3 1 . Terminals 41 | . 8 . 28 5 . . Fabricators . | . . . . . . . Repair Stations 6 | . . . 6 . . . Recycling Units 8 | . 4 . 4 . . . Scanalyzers 5 | . . . 5 . . . Garrison Access . | . . . . . . . Terminal Hacks 10 | . 2 1 5 1 1 . Robot Analysis 3 | . 1 . 2 . . . Prototype ID Bank 1 | . . . 1 . . . Open Door 1 | . . 1 . . . . Branch Access Points 2 | . . . 1 1 . . Locate Traps 2 | . 1 . 1 . . . Proto ID Catalog 1 | . . . . . 1 . Fabricator Hacks . | . . . . . . . Repair Station Hacks 6 | . . . 6 . . . Scan Component 3 | . . . 3 . . . Repair 3 | . . . 3 . . . Recycling Unit Hacks 3 | . 1 . 2 . . . Retrieve Components 3 | . 1 . 2 . . . Scanalyzer 5 | . . . 5 . . . Insert Component 1 | . . . 1 . . . Analyze 2 | . . . 2 . . . Retrieve Study 2 | . . . 2 . . . Garrison Access Hacks . | . . . . . . . Unauthorized Hacks 15 | . 5 . 8 2 . . Terminals 12 | . 3 . 7 2 . . Botnet 4 | . 1 . 2 1 . . Disrupt 1 | . 1 . . . . . Skim 7 | . 1 . 5 1 . . Fabricators . | . . . . . . . Repair Stations . | . . . . . . . Recycling Units 3 | . 2 . 1 . . . Reject 1 | . . . 1 . . . Tunnel 2 | . 2 . . . . . Scanalyzers . | . . . . . . . Garrison Access . | . . . . . . . Data Cores Recovered . | . . . . . . . Used . | . . . . . . . Hacking Detections 16 | . 3 . 11 2 . . Full Trace Events . | . . . . . . . Feedback Events . | . . . . . . . Feedback Blocked . | . . . . . . . Robot Schematics Acquired . | . . . . . . . Robots Built . | . . . . . . . Authchips . | . . . . . . . Time . | . . . . . . . Total Robot Build Rating . | . . . . . . . Part Schematics Acquired 1 | . . . 1 . . . Parts Built . | . . . . . . . Authchips . | . . . . . . . Time . | . . . . . . . Total Part Build Rating . | . . . . . . . Part Studies Acquired 2 | . . . 2 . . . Parts Repaired 3 | . . . 3 . . . Time 98 | . . . 98 . . . Parts Recycled . | . . . . . . . Recycled Matter . | . . . . . . . Retrieved Matter . | . . . . . . . Retrieved Components 19 | . . . 19 . . . Parts Scanalyzed 1 | . . . 1 . . . Part Schematics Acquired 1 | . . . 1 . . . Parts Damaged . | . . . . . . . Bothacking | -11 -10 -10 -9 -9 -9 -8 ------------ Run | Yrd Mat Min Mat Min Exi Min Used RIF Installer . | . . . . . . . Robots Hacked . | . . . . . . . Non-combat . | . . . . . . . Combat . | . . . . . . . Robot Hacks Applied . | . . . . . . . Relay Couplers Released . | . . . . . . . Fabnet Peak Effective % . | . . . . . . . Robots Rewired . | . . . . . . . Allies Hacked . | . . . . . . . Hacks Repelled . | . . . . . . . Allies | -11 -10 -10 -9 -9 -9 -8 -------- Run | Yrd Mat Min Mat Min Exi Min Total Allies 4 | . . 3 . 1 . . Largest Group 2 | . . 2 2 1 . . Highest-Rated Group 38 | . . 38 38 31 . . Highest-Rated Ally 31 | . . 31 31 31 . . Total Orders . | . . . . . . . Ally Attacks 17 | . . 10 7 . . . Total Damage 227 | . . 124 103 . . . Kills 2 | . . 1 1 . . . Allies Corrupted . | . . . . . . . Allies Melted . | . . . . . . . Intel | -11 -10 -10 -9 -9 -9 -8 ------- Run | Yrd Mat Min Mat Min Exi Min Active Infowar (turns) 2477 | 35 238 . 1691 513 . . Seismic 2477 | 35 238 . 1691 513 . . Robot Analysis Total 3 | . 1 . 2 . . . Derelict Logs Recovered 2 | . . 1 . 1 . . Drone Launches . | . . . . . . . Drone Recoveries . | . . . . . . . Exploration | -11 -10 -10 -9 -9 -9 -8 ------------- Run | Yrd Mat Min Mat Min Exi Min Turns Passed 6631 | 115 642 772 1701 1034 2277 90 Spaces Moved 3148 | 53 261 503 785 544 970 32 Core 5 | 5 . . . . . . Treads 2665 | 48 261 145 675 544 970 22 Legs 394 | . . 274 110 . . 10 Wheels 84 | . . 84 . . . . Hover . | . . . . . . . Flight . | . . . . . . . Fastest Speed 45 | 50 160 95 120 160 200 45 Average Speed 170 | 149 160 127 162 178 200 151 Slowest Speed 260 | 160 160 190 260 200 200 200 Overloaded Moves 10 | . . . . . . 10 Propulsion Burnouts . | . . . . . . . Robots Hopped . | . . . . . . . Potential Cave-ins . | . . . . . . . Cave-ins Triggered . | . . . . . . . Exploration Rate (%) 57 | 4 52 83 68 98 85 15 Regions Visited 6 Branch Regions 4 Pre-discovered Areas 5 | . 2 1 2 . . . Known Exits Taken 1 | . . . 1 . . . Unknown Exits Taken 5 | 1 1 1 . 1 1 . Scrap Searched 5 | . . 2 . 2 . 1 Spaces Dug 6 | . . . 6 . . . Terrain Destroyed 13 | . . . 12 . 1 . Melee . | . . . . . . . Projectile 1 | . . . . . 1 . AOE 12 | . . . 12 . . . Terrain Rammed . | . . . . . . . Walls Destroyed . | . . . . . . . Machines Disabled . | . . . . . . . Actions | -11 -10 -10 -9 -9 -9 -8 --------- Run | Yrd Mat Min Mat Min Exi Min Total 3914 | 72 389 584 1078 585 1155 51 Wait 288 | . 49 29 165 17 26 2 Move 3142 | 52 260 502 784 543 969 32 Hop . | . . . . . . . Pick Up 61 | 4 8 5 19 2 23 . Fast Attach 10 | 6 2 . 2 . . . Attach 13 | . 2 . 3 1 4 3 Detach . | . . . . . . . Swap 61 | . 7 8 28 3 13 2 Drop 42 | . 3 7 7 4 21 . Fire 277 | 8 54 28 65 12 98 12 Melee 1 | . . . . . 1 . Ram . | . . . . . . . Kick 9 | . . 5 4 . . . Crush 10 | 2 4 . 1 3 . . Escape Stasis . | . . . . . . . Rewire . | . . . . . . . Trap . | . . . . . . . Miscellaneous . | . . . . . . . Route ------- -11/Scrapyard -10/Materials (discovered 3 exits: *Mat x2 / *Min) -10/Mines (discovered 2 exits: *Mat / [*Sub]) -9/Materials (discovered 5 exits: *Mat x3 / *Min x2) -9/Mines (discovered 3 exits: *Mat x2 / *Exi) -9/Exiles -8/Mines History --------- Turn | Location | Event 3 | -11/Scrapyard | Discovered new exit (range 16) 116 | -11/Scrapyard | Entered Materials 312 | -10/Materials | Build established: Mutant 397 | -10/Materials | Discovered new exit (range 10) 670 | -10/Materials | Discovered new exit (range 6) 693 | -10/Materials | Discovered new exit (range 12) 758 | -10/Materials | Entered Mines 782 | -10/Mines | Met a Derelict shopkeep closing up shop 1049 | -10/Mines | Discovered new exit (range 5) 1299 | -10/Mines | Found a damaged Exp. Sensor Array with a note attached 1303 | -10/Mines | Found Prototype Device 1342 | -10/Mines | Core integrity fell below 50% 1409 | -10/Mines | Met a Derelict testing a Signal Generator 1490 | -10/Mines | Discovered new exit (range 9) 1530 | -10/Mines | Entered Materials 1530 | -9/Materials | Accompanied by 2 allies 1530 | -9/Materials | Evolved 2 slots: Propulsion x1, Utility x1 1745 | -9/Materials | Repaired Corrupted Lgt. Treads 1782 | -9/Materials | Repaired Corrupted Lgt. Treads? 1856 | -9/Materials | Repaired Lgt. Treads 2158 | -9/Materials | Build established: Scavenger-Mutant 2452 | -9/Materials | Discovered new exit (range 15) 2681 | -9/Materials | Discovered new exit (range 14) 2795 | -9/Materials | Learned location of Zion (-6) 2860 | -9/Materials | Identified exit to Mines 3074 | -9/Materials | Identified Exp. Sensor Array 3110 | -9/Materials | Learned Storage interactive machine intel 3177 | -9/Materials | Identified exit to Materials 3231 | -9/Materials | Entered Mines 3460 | -9/Mines | Discovered exit to Materials (range 4) 3529 | -9/Mines | Learned Materials terminal intel 3635 | -9/Mines | Discovered exit to Materials (range 13) 3757 | -9/Mines | Joined a pair of Derelicts in attacking an 0b10 outpost 3925 | -9/Mines | Deemed a non-threat by the Exiles lab entrance 3925 | -9/Mines | Discovered new exit (range 5) 4053 | -9/Mines | Build established: Mutant 4142 | -9/Mines | Escorted by a lone wolf Derelict 4265 | -9/Mines | Entered Exiles 4265 | -9/Exiles | Accompanied by 1 ally 4319 | -9/Exiles | Met 8R-AWN 4349 | -9/Exiles | Met EX-HEX 4403 | -9/Exiles | Met EX-BIN 4427 | -9/Exiles | Aligned with FarCom system 4429 | -9/Exiles | Given EX-Vault access code 4475 | -9/Exiles | Opened EX-Vault 4529 | -9/Exiles | Warned to stay clear of 0b10 Research branches 4626 | -9/Exiles | Found Chronowheel 4810 | -9/Exiles | Met EX-DEC 5358 | -9/Exiles | Attacked by the Exiles 5558 | -9/Exiles | Lost 3 parts (2n1u) 5597 | -9/Exiles | Destroyed 8R-AWN 5603 | -9/Exiles | Found Prototype Ballistic Gun 5611 | -9/Exiles | Found Prototype Processor 5615 | -9/Exiles | Identified 8R-AWN's Boregun 5759 | -9/Exiles | Destroyed EX-BIN 5788 | -9/Exiles | Destroyed EX-HEX 5830 | -9/Exiles | Destroyed EX-DEC 5928 | -9/Exiles | Found Deploy-a-Sentry 5953 | -9/Exiles | Build established: Scavenger-Mutant 6143 | -9/Exiles | Found Potential Leg 6146 | -9/Exiles | Found Potential Leg 6318 | -9/Exiles | Found AWS/Autocannon 6520 | -9/Exiles | Discovered new exit (range 14) 6542 | -9/Exiles | Stole four prototypes: Potential Leg, Chronowheel, AWS/Autocannon, Deploy-a-Sentry 6542 | -9/Exiles | Entered Mines 6619 | -8/Mines | 99-TNT came to Exiles' defense 6625 | -8/Mines | Core integrity fell below 50% 6632 | -8/Mines | Destroyed by 99-TNT with 99-TNT's Nukerbomber Last Messages --------------- 06576_ Found Titanium Leg. 06576_ Found Particle Gun. 06576_ Found 38 Matter. 06577_ Acquired 13 matter. 06600_ Acquired 14 matter. 06604_ G-47 Trooper destroyed. 06610_ G-50 Soldier destroyed. 06619_ 99-TNT: "I came as fast as I could... Wait, it was you!" 06619_ Acquired 11 matter. 06620_ G-47 Trooper destroyed. 06620_ Imp. Assault Rifle destroyed. 06622_ Hardlight Generator destroyed. 06622_ Med. Armor Plating destroyed. 06622_ Core Extractor disabled. 06624_ Hpw. Shotgun destroyed. 06624_ Lgt. Treads+ destroyed. 06627_ The unstable cave ceiling collapses. 06628_ Hpw. Shotgun destroyed. 06629_ The unstable cave ceiling collapses. 06632_ Lgt. Treads+ destroyed. Map ----- +----------------------------------------------------+ | | | | | | | | | | | | | | | ??????????????????????????#####?????##???????? | | ?????????????????????????# ###?# ??????? | | ??????????????###?????### # ??????? | | ?????????????## #????# ##????? | | ?????????????# ##?## #????? | | ?????????????# ## #????? | | ?????????????# # [ ????? | | ?????????????# ????? | | ?????????????# ????? | | ?????????????# d # ????? | | ?????????????# ????? | | ?????????????## #### #????? | | ?????????????## #????? #?????? | | ????????????##s ##??????????????? | | ????????????# ###########??????? | | ???????? #??????? | | ???????? ### #??????? | | ????????##### #??# # ####### ???????? | | ????????????## ???## @ ???????????????? | | ?????????????#?????# #??????????????? | | ???????????????????# #?????????????? | | ???????????????????## ??????????????? | | ????????????????????# ##?????????????? | | ????????????????????##### ?????????????? | | ???????????????????????? ????????????? | | ???????????????????????? ???????????? | | ???????????????????????? """" #??????????? | | ???????????????????????? """" ##??????????? | | ???????????????????????? """" ##???????????? | | ???????????????????????? ???? ##????????????? | | ???????????????????????? ?????##?????????????? | | ???????????????????????? ????????????????????? | | ????????????????????????#????????????????????? | | ?????????????????????????????????????????????? | | ?????????????????????????????????????????????? | | ?????????????????????????????????????????????? | | ?????????????????????????????????????????????? | | ?????????????????????????????????????????????? | | ?????????????????????????????????????????????? | | ?????????????????????????????????????????????? | | ?????????????????????????????????????????????? | | ?????????????????????????????????????????????? | | ?????????????????????????????????????????????? | +----------------------------------------------------+ Best States ------------- Heat Dissipation 39 Energy Generation 23 Energy Capacity 310 Matter Stores 300 Matter Capacity 300 Sight Range 16 Terrain Scan Density 10 Armor Coverage 225 Resistance: KI 20 Weapon Cycling 25 Evasion (%) 61 Recoil Reduction 3 Item Schematics ----------------- Exp. Sensor Array | -9/Materials | Scanalyzed Robot Schematics ------------------ None Fabricated ------------ Nothing Repaired ---------- Lgt. Treads | 82% | -9/Materials | Corrupted Lgt. Treads | 83% | -9/Materials | Corrupted Lgt. Treads | 32% | -9/Materials Studied --------- Lgt. Treads | -9/Materials | Hacked Flail | -9/Materials | Hacked Alien Tech Used ----------------- None Achievements -------------- None Challenges ------------ None Game ------ Seed FireCommDetonator Manual? 0 Play Time 00:39:36 Cumulative 1139.9 hours Start 2026.04.17 @ 09:34:11 End 2026.04.17 @ 10:32:49 Sessions 1 Manual Loads 0 Difficulty Rogue Special Mode None Game No. 360 Rogue 358 Adventurer 2 Explorer 0 Win Type - Total 87 Types 25/20/19/1/1/1/14/2/1/3 Lore% 98 Gallery% 92 Achievement% 87 Wizard Run 0 Options --------- Layout 0 ASCII 0 Keyboard 1 Movement Numpad Keybinds 0 Fullscreen 1 Font 24/Smallcaps Map View 76x50 Zoom Use 0% Tactical HUD 1 Map Filters NONE Filters NONE Steam 1 RUN: d6a25740-8c27-40f6-9996-d7b76374ad37